fUSD/lending_fUSD_20240714
["ID","MTS","AMOUNT","RATE_DAILY","PERIOD"]
[332019612,1720935055995,-500.0,0.00013698,2]
[332019614,1720935056005,-3585.89,0.00013698,2]
[332019616,1720935056015,-500.0,0.00013698,2]
[332019618,1720935056025,-500.0,0.00013698,2]
[332019620,1720935056035,-929.77,0.00013698,2]
[332019622,1720935056045,-500.0,0.00013698,2]
[332019624,1720935056055,-651.18,0.00013698,2]
[332019626,1720935056064,-290.60546147,0.00013698,2]
[332019630,1720935056099,-209.39453853,0.00013698,2]
[332019632,1720935056109,-167.22432766,0.00013698,2]
[332019634,1720935056118,-569.71,0.00013698,2]
[332019636,1720935056128,-770.25,0.00013698,2]
[332019638,1720935056138,-621.49,0.00013698,2]
[332019640,1720935056147,-500.0,0.00013698,2]
[332019642,1720935056159,-500.0,0.00013698,2]
[332019644,1720935056168,-145.2879847,0.00013698,2]
[332019647,1720935056180,-354.7120153,0.00013698,2]
[332019649,1720935056190,-500.0,0.00013698,2]
[332019651,1720935056200,-500.0,0.00013698,2]
[332019653,1720935056210,-500.0,0.00013698,2]
[332019655,1720935056219,-122.0779847,0.00013698,2]
[332019657,1720935056231,-377.9220153,0.00013698,2]
[332019659,1720935056241,-500.0,0.00013698,2]
[332019661,1720935056251,-500.0,0.00013698,2]
[332019663,1720935056261,-500.0,0.00013698,2]
[332019665,1720935056271,-500.0,0.00013698,2]
[332019667,1720935056281,-471.7699847,0.00013698,2]
[332019669,1720935056293,-120.85152814,0.00013698,2]
[332019671,1720935056304,-500.0,0.00013698,2]
[332019674,1720935056315,-500.0,0.00013698,2]
[332019676,1720935056325,-500.0,0.00013698,2]
[332019678,1720935056335,-500.0,0.00013698,2]
[332019680,1720935056346,-500.0,0.00013698,2]
[332019682,1720935056357,-500.0,0.00013698,2]
[332019684,1720935056366,-529.69,0.00013698,2]
[332019686,1720935056376,-228.90597717,0.00013698,2]
[332019689,1720935056395,-271.09402283,0.00013698,2]
[332019691,1720935056405,-310.5560677,0.00013698,2]
[332019694,1720935056422,-189.4439323,0.00013698,2]
[332019696,1720935056433,-500.0,0.00013698,2]
[332019698,1720935056443,-500.0,0.00013698,2]
[332019700,1720935056453,-500.0,0.00013698,2]
[332019702,1720935056463,-500.0,0.00013698,2]
[332019704,1720935056473,-944.3,0.00013698,2]
[332019706,1720935056483,-500.0,0.00013698,2]
[332019708,1720935056493,-500.0,0.00013698,2]
[332019710,1720935056502,-500.0,0.00013698,2]
[332019713,1720935056513,-500.0,0.00013698,2]
[332019715,1720935056523,-951.69,0.00013698,2]
[332019717,1720935056533,-500.0,0.00013698,2]
[332019719,1720935056542,-500.0,0.00013698,2]
[332019721,1720935056553,-500.0,0.00013698,2]
[332019723,1720935056563,-500.0,0.00013698,2]
[332019725,1720935056572,-500.0,0.00013698,2]
[332019727,1720935056582,-642.12,0.00013698,2]
[332019729,1720935056592,-500.0,0.00013698,2]
[332019731,1720935056602,-500.0,0.00013698,2]
[332019733,1720935056612,-164.42524137,0.00013698,2]
[332019735,1720935056624,-335.57475863,0.00013698,2]
[332019737,1720935056634,-191.08687021,0.00013698,2]
[332019739,1720935056646,-308.91312979,0.00013698,2]
[332019741,1720935056656,-500.0,0.00013698,2]
[332019743,1720935056666,-96.81458778,0.00013698,2]
[332019746,1720935056677,-403.18541222,0.00013698,2]
[332019748,1720935056688,-500.0,0.00013698,2]
[332019750,1720935056697,-500.0,0.00013698,2]
[332019752,1720935056707,-500.0,0.00013698,2]
[332019754,1720935056717,-500.0,0.00013698,2]
[332019756,1720935056732,-500.0,0.00013698,2]
[332019758,1720935056742,-500.0,0.00013698,2]
[332019760,1720935056752,-500.0,0.00013698,2]
[332019762,1720935056761,-500.0,0.00013698,2]
[332019764,1720935056773,-502.5,0.00013698,2]
[332019766,1720935056783,-515.86,0.00013698,2]
[332019768,1720935056792,-500.0,0.00013698,2]
[332019770,1720935056804,-715.99,0.00013698,2]
[332019772,1720935056814,-500.0,0.00013698,2]
[332019774,1720935056824,-541.74,0.00013698,2]
[332019776,1720935056834,-500.0,0.00013698,2]
[332019779,1720935056845,-500.0,0.00013698,2]
[332019780,1720935056854,-500.0,0.00013698,2]
[332019782,1720935056864,-582.06,0.00013698,2]
[332019784,1720935056874,-659.35,0.00013698,2]
[332019786,1720935056884,-500.0,0.00013698,2]
[332019789,1720935056895,-500.0,0.00013698,2]
[332019791,1720935056904,-344.0941253,0.00013698,2]
[332020074,1720935352008,-372.22,0.00010336,2]
[332020075,1720935352029,-489.30737314,0.00010896,2]
[332020076,1720935352049,-553.0,0.00010996,2]
[332020077,1720935352068,-500.0,0.00011012,2]
[332020078,1720935352088,-4585.47262686,0.00011097,2]
[332020111,1720936163126,-318.61004449,0.00016727,30]
[332020113,1720936201672,-9352.0,0.00015,10]
[332020114,1720936201704,-61692.89949371,0.00016,7]
[332020116,1720936232174,-269.68805103,9.606e-05,2]
[332020117,1720936232184,-952.67650872,9.706e-05,2]
[332020118,1720936232193,-372.04,9.706e-05,2]
[332020119,1720936232203,-717.17020414,0.00010912,2]
[332020120,1720936232214,-2140.41800982,0.00010912,2]
[332020121,1720936232225,-4200.0,0.00010912,2]
[332020122,1720936232235,-499.2998041,0.00010912,2]
[332020123,1720936232247,-2219.9999988,0.00010912,2]
[332020124,1720936232260,-1033.7,0.00010912,2]
[332020125,1720936232272,-2670.35134403,0.00010912,2]
[332020126,1720936232285,-578.5596183,0.00010912,2]
[332020127,1720936232297,-1387.50102081,0.00010912,2]
[332020128,1720936232307,-553.49,0.00010959,2]
[332020129,1720936232316,-500.0,0.00011012,2]
[332020130,1720936232326,-2563.53385632,0.00011012,2]
[332020131,1720936232337,-150.0,0.00011068,2]
[332020132,1720936232346,-249.26221779,0.00011097,2]
[332020133,1720936232356,-150.0,0.00011097,2]
[332020134,1720936232367,-319.28353567,0.00011098,2]
[332020135,1720936232376,-5000.0,0.00011098,2]
[332020136,1720936232386,-2142.4852451,0.00011098,2]
[332020137,1720936232398,-1042.37546399,0.00011098,2]
[332020138,1720936232408,-155.0,0.00011098,2]
[332020139,1720936232418,-155.31001813,0.00011098,2]
[332020140,1720936232428,-155.33204696,0.00011098,2]
[332020141,1720936232438,-346.90118403,0.00011098,2]
[332020142,1720936232450,-155.0,0.00011098,2]
[332020143,1720936232462,-265.74743758,0.00011098,2]
[332020144,1720936232471,-308.12292157,0.00011098,2]
[332020145,1720936232480,-330.75563745,0.00011098,2]
[332020146,1720936232491,-599.34112366,0.00011098,2]
[332020147,1720936232501,-155.96440749,0.00011098,2]
[332020148,1720936232512,-476.23095611,0.00011098,2]
[332020149,1720936232523,-155.0,0.00011098,2]
[332020150,1720936232534,-439.08494804,0.00011098,2]
[332020151,1720936232544,-306.97211217,0.00011098,2]
[332020152,1720936232553,-366.12690226,0.00011098,2]
[332020153,1720936232564,-155.0,0.00011098,2]
[332020154,1720936232573,-367.03516126,0.00011098,2]
[332020155,1720936232584,-628.53270796,0.00011098,2]
[332020156,1720936232593,-393.61181297,0.00011098,2]
[332020157,1720936232605,-155.21576544,0.00011098,2]
[332020158,1720936232615,-156.77640348,0.00011098,2]
[332020159,1720936232625,-155.0,0.00011098,2]
[332020160,1720936232635,-276.54348187,0.00011098,2]
[332020161,1720936232644,-155.0984075,0.00011098,2]
[332020162,1720936232655,-163.92127245,0.00011098,2]
[332020163,1720936232664,-269.8232753,0.00011098,2]
[332020164,1720936232674,-155.48247356,0.00011098,2]
[332020165,1720936232684,-227.3638533,0.00011098,2]
[332020166,1720936232693,-262.30530413,0.00011197,2]
[332020167,1720936232703,-160.143072,0.00011197,2]
[332020168,1720936232712,-757.12440938,0.00011199,2]
[332020169,1720936232721,-14853.54928316,0.00011199,2]
[332020170,1720936232730,-12636.2197445,0.00011199,2]
[332020171,1720936232739,-1000.0,0.00011337,2]
[332020172,1720936232748,-250.0,0.00011412,2]
[332020173,1720936232758,-904.37,0.000115,2]
[332020174,1720936232768,-167.15,0.0001165,2]
[332020175,1720936232777,-468.29,0.0001165,2]
[332020176,1720936232787,-1152.07979419,0.000118,3]
[332020177,1720936232796,-23900.0,0.00011801,2]
[332020178,1720936232805,-499.99,0.00011801,2]
[332020179,1720936232814,-372.04,0.0001197,2]
[332020180,1720936232823,-2016.99,0.00012055,2]
[332020181,1720936232833,-897.36,0.00012284,2]
[332020182,1720936232842,-897.36,0.00012287,2]
[332020183,1720936232851,-897.36,0.0001229,2]
[332020184,1720936232860,-897.36,0.00012293,2]
[332020185,1720936232869,-897.36,0.00012297,2]
[332020186,1720936232879,-897.36,0.000123,2]
[332020187,1720936232888,-155.83351328,0.00012302,2]
[332020188,1720936232897,-156.1698661,0.00012302,2]
[332020189,1720936232906,-176.66821399,0.00012302,2]
[332020190,1720936232915,-178.71441129,0.00012302,2]
[332020191,1720936232925,-897.36,0.00012303,2]
[332020192,1720936232934,-897.36,0.00012306,2]
[332020193,1720936232944,-897.36,0.0001231,2]
[332020194,1720936232954,-897.36,0.00012313,2]
[332020195,1720936232963,-897.36,0.00012316,2]
[332020196,1720936232972,-897.36,0.00012319,2]
[332020197,1720936232983,-897.36,0.00012323,2]
[332020198,1720936232992,-897.36,0.00012326,2]
[332020199,1720936233001,-897.36,0.00012329,2]
[332020200,1720936233010,-897.36,0.00012332,2]
[332020201,1720936233020,-897.36,0.00012336,2]
[332020202,1720936233029,-897.36,0.00012339,2]
[332020203,1720936233038,-897.36,0.00012342,2]
[332020204,1720936233048,-897.36,0.00012345,2]
[332020205,1720936233057,-182.01,0.00012609,2]
[332020206,1720936233067,-1000.0,0.00012754,2]
[332020207,1720936233080,-500.0,0.000129,4]
[332020208,1720936233089,-300.48,0.00012936,2]
[332020209,1720936233098,-150.0,0.00012936,2]
[332020210,1720936233108,-150.0,0.00012936,2]
[332020211,1720936233120,-150.0,0.00012936,2]
[332020212,1720936233130,-150.0,0.00012936,2]
[332020213,1720936233141,-300.0,0.00012936,2]
[332020214,1720936233150,-150.0,0.00012936,2]
[332020215,1720936233160,-150.0,0.00012936,2]
[332020216,1720936233169,-1100.0,0.00013,4]
[332020217,1720936233179,-1250.0,0.00013,2]
[332020218,1720936233188,-1700.0,0.000131,4]
[332020219,1720936233197,-156.27013009,0.00013128,2]
[332020220,1720936233206,-2894.0,0.00013158,2]
[332020221,1720936233216,-242.7045,0.00013183,2]
[332020222,1720936233225,-2300.0,0.000132,4]
[332020223,1720936233234,-2900.0,0.000133,4]
[332020224,1720936233243,-500.0,0.000134,4]
[332020225,1720936233253,-1806.3024,0.00013498,2]
[332020226,1720936233262,-500.0,0.000135,4]
[332020227,1720936233271,-167.15,0.00013591,2]
[332020228,1720936233280,-170.81539736,0.00013598,2]
[332020229,1720936233289,-273.90957045,0.00013598,2]
[332020230,1720936233298,-317.07790563,0.00013598,2]
[332020231,1720936233308,-1000.0,0.00013598,2]
[332020232,1720936233317,-5540.0646,0.00013598,2]
[332020233,1720936233327,-153406.8654,0.00013598,2]
[332020234,1720936233336,-500.0,0.000136,4]
[332020235,1720936233346,-194.39572574,0.00013695,2]
[332020236,1720936233355,-441.31666541,0.00013698,2]
[332020237,1720936233367,-500.0,0.00013698,2]
[332020238,1720936233376,-500.0,0.00013698,2]
[332020239,1720936233385,-500.0,0.00013698,2]
[332020240,1720936233395,-500.0,0.00013698,2]
[332020241,1720936233404,-500.0,0.00013698,2]
[332020242,1720936233413,-500.0,0.00013698,2]
[332020243,1720936233422,-500.0,0.00013698,2]
[332020244,1720936233431,-500.0,0.00013698,2]
[332020245,1720936233441,-500.0,0.00013698,2]
[332020246,1720936233450,-500.0,0.00013698,2]
[332020247,1720936233460,-500.0,0.00013698,2]
[332020248,1720936233469,-500.0,0.00013698,2]
[332020249,1720936233478,-500.0,0.00013698,2]
[332020250,1720936233488,-500.0,0.00013698,2]
[332020251,1720936233498,-500.0,0.00013698,2]
[332020252,1720936233508,-500.0,0.00013698,2]
[332020253,1720936233517,-500.0,0.00013698,2]
[332020254,1720936233526,-500.0,0.00013698,2]
[332020255,1720936233535,-2000.0,0.00013698,2]
[332020256,1720936233544,-578.76,0.00013698,2]
[332020257,1720936233553,-200.0,0.00013698,2]
[332020258,1720936233563,-500.0,0.00013698,2]
[332020259,1720936233572,-500.0,0.00013698,2]
[332020260,1720936233581,-500.0,0.00013698,2]
[332020261,1720936233590,-500.0,0.00013698,2]
[332020262,1720936233599,-531.9,0.00013698,2]
[332020263,1720936233609,-500.0,0.00013698,2]
[332020264,1720936233620,-500.0,0.00013698,2]
[332020265,1720936233629,-500.0,0.00013698,2]
[332020266,1720936233638,-500.0,0.00013698,2]
[332020267,1720936233647,-500.0,0.00013698,2]
[332020268,1720936233656,-500.0,0.00013698,2]
[332020269,1720936233665,-500.0,0.00013698,2]
[332020270,1720936233674,-500.0,0.00013698,2]
[332020271,1720936233685,-500.0,0.00013698,2]
[332020272,1720936233694,-500.0,0.00013698,2]
[332020273,1720936233707,-500.0,0.00013698,2]
[332020274,1720936233716,-500.0,0.00013698,2]
[332020275,1720936233725,-423.61842951,0.00013698,2]
[332020276,1720936233741,-76.38157049,0.00013698,2]
[332020277,1720936233750,-500.0,0.00013698,2]
[332020278,1720936233759,-500.0,0.00013698,2]
[332020279,1720936233768,-500.0,0.00013698,2]
[332020280,1720936233777,-500.0,0.00013698,2]
[332020281,1720936233786,-411.94027829,0.00013698,2]
[332020282,1720936233798,-88.05972171,0.00013698,2]
[332020283,1720936233807,-500.0,0.00013698,2]
[332020284,1720936233816,-500.0,0.00013698,2]
[332020285,1720936233826,-500.0,0.00013698,2]
[332020286,1720936233835,-500.0,0.00013698,2]
[332020287,1720936233844,-583.68855803,0.00013698,2]
[332020288,1720936233854,-500.0,0.00013698,2]
[332020289,1720936233863,-500.0,0.00013698,2]
[332020290,1720936233872,-500.0,0.00013698,2]
[332020291,1720936233881,-80.25556764,0.00013698,2]
[332020292,1720936233893,-419.74443236,0.00013698,2]
[332020293,1720936233903,-500.0,0.00013698,2]
[332020294,1720936233912,-500.0,0.00013698,2]
[332020295,1720936233921,-500.0,0.00013698,2]
[332020296,1720936233931,-500.0,0.00013698,2]
[332020297,1720936233940,-500.0,0.00013698,2]
[332020298,1720936233949,-293.25172026,0.00013698,2]
[332020299,1720936233960,-206.74827974,0.00013698,2]
[332020300,1720936233970,-500.0,0.00013698,2]
[332020301,1720936233979,-500.0,0.00013698,2]
[332020302,1720936233988,-500.0,0.00013698,2]
[332020303,1720936233998,-500.0,0.00013698,2]
[332020304,1720936234007,-82.51958334,0.00013698,2]
[332020305,1720936234019,-417.48041666,0.00013698,2]
[332020306,1720936234028,-414.1816006,0.00013698,2]
[332020307,1720936234073,-85.8183994,0.00013698,2]
[332020308,1720936234082,-301.79115953,0.00013698,2]
[332020309,1720936234100,-198.20884047,0.00013698,2]
[332020310,1720936234109,-500.0,0.00013698,2]
[332020311,1720936234119,-500.0,0.00013698,2]
[332020312,1720936234128,-444.36306777,0.00013698,2]
[332020313,1720936234160,-55.63693223,0.00013698,2]
[332020314,1720936234172,-500.0,0.00013698,2]
[332020315,1720936234181,-525.48,0.00013698,2]
[332020316,1720936234191,-154.32377745,0.00013698,2]
[332020323,1720936238491,-400.0,0.000129,4]
[332020325,1720936238500,-800.0,0.00013,4]
[332020327,1720936238510,-74.25252714,0.00013698,2]
[332020332,1720936238639,-271.42369541,0.00013698,2]
[332020333,1720936238648,-500.0,0.00013698,2]
[332020334,1720936238658,-500.0,0.00013698,2]
[332020335,1720936238667,-500.0,0.00013698,2]
[332020336,1720936238678,-500.0,0.00013698,2]
[332020337,1720936238690,-500.0,0.00013698,2]
[332020338,1720936238700,-500.0,0.00013698,2]
[332020339,1720936238711,-500.0,0.00013698,2]
[332020340,1720936238719,-500.0,0.00013698,2]
[332020341,1720936238730,-500.0,0.00013698,2]
[332020342,1720936238741,-500.0,0.00013698,2]
[332020343,1720936238751,-500.0,0.00013698,2]
[332020344,1720936238763,-500.0,0.00013698,2]
[332020345,1720936238774,-500.0,0.00013698,2]
[332020346,1720936238784,-500.0,0.00013698,2]
[332020347,1720936238795,-500.0,0.00013698,2]
[332020348,1720936238806,-506.79,0.00013698,2]
[332020349,1720936238815,-500.0,0.00013698,2]
[332020350,1720936238825,-500.0,0.00013698,2]
[332020351,1720936238835,-500.0,0.00013698,2]
[332020352,1720936238846,-301.22151745,0.00013698,2]
[332020353,1720936238855,-234.23566994,0.00013698,2]
[332020354,1720936238864,-500.0,0.00013698,2]
[332020355,1720936238876,-500.0,0.00013698,2]
[332020356,1720936238885,-500.0,0.00013698,2]
[332020357,1720936238895,-500.0,0.00013698,2]
[332020358,1720936238905,-500.0,0.00013698,2]
[332020359,1720936238914,-500.0,0.00013698,2]
[332020360,1720936238925,-614.93757149,0.00013698,2]
[332020361,1720936238935,-500.0,0.00013698,2]
[332020362,1720936238946,-500.0,0.00013698,2]
[332020363,1720936238956,-500.0,0.00013698,2]
[332020364,1720936238966,-500.0,0.00013698,2]
[332020365,1720936238976,-500.0,0.00013698,2]
[332020367,1720936238986,-500.0,0.00013698,2]
[332020369,1720936238995,-500.0,0.00013698,2]
[332020370,1720936239004,-500.0,0.00013698,2]
[332020372,1720936239014,-500.0,0.00013698,2]
[332020374,1720936239024,-500.0,0.00013698,2]
[332020376,1720936239033,-500.0,0.00013698,2]
[332020378,1720936239042,-500.0,0.00013698,2]
[332020380,1720936239052,-500.0,0.00013698,2]
[332020382,1720936239062,-500.0,0.00013698,2]
[332020384,1720936239074,-500.0,0.00013698,2]
[332020386,1720936239084,-500.0,0.00013698,2]
[332020388,1720936239097,-500.0,0.00013698,2]
[332020390,1720936239107,-500.0,0.00013698,2]
[332020392,1720936239118,-500.0,0.00013698,2]
[332020394,1720936239127,-500.0,0.00013698,2]
[332020396,1720936239137,-500.0,0.00013698,2]
[332020398,1720936239146,-500.0,0.00013698,2]
[332020400,1720936239156,-452.83999959,0.00013698,2]
[332020402,1720936239168,-500.0,0.00013698,2]
[332020404,1720936239177,-500.0,0.00013698,2]
[332020406,1720936239187,-500.0,0.00013698,2]
[332020408,1720936239198,-500.0,0.00013698,2]
[332020410,1720936239208,-500.0,0.00013698,2]
[332020412,1720936239219,-558.74687815,0.00013698,2]
[332020414,1720936239228,-500.0,0.00013698,2]
[332020416,1720936239238,-500.0,0.00013698,2]
[332020419,1720936239250,-500.0,0.00013698,2]
[332020421,1720936239261,-500.0,0.00013698,2]
[332020423,1720936239272,-500.0,0.00013698,2]
[332020425,1720936239282,-500.0,0.00013698,2]
[332020427,1720936239292,-500.0,0.00013698,2]
[332020429,1720936239302,-500.0,0.00013698,2]
[332020431,1720936239314,-500.0,0.00013698,2]
[332020433,1720936239324,-500.0,0.00013698,2]
[332020435,1720936239334,-500.0,0.00013698,2]
[332020438,1720936239346,-500.0,0.00013698,2]
[332020440,1720936239356,-500.0,0.00013698,2]
[332020442,1720936239367,-500.0,0.00013698,2]
[332020444,1720936239377,-500.0,0.00013698,2]
[332020446,1720936239386,-500.0,0.00013698,2]
[332020448,1720936239396,-500.0,0.00013698,2]
[332020450,1720936239405,-500.0,0.00013698,2]
[332020452,1720936239416,-500.0,0.00013698,2]
[332020454,1720936239426,-500.0,0.00013698,2]
[332020456,1720936239436,-500.0,0.00013698,2]
[332020458,1720936239446,-500.0,0.00013698,2]
[332020460,1720936239455,-500.0,0.00013698,2]
[332020462,1720936239465,-500.0,0.00013698,2]
[332020464,1720936239474,-500.0,0.00013698,2]
[332020466,1720936239483,-500.0,0.00013698,2]
[332020468,1720936239492,-500.0,0.00013698,2]
[332020470,1720936239501,-615.45,0.00013698,2]
[332020472,1720936239510,-500.0,0.00013698,2]
[332020474,1720936239519,-500.0,0.00013698,2]
[332020476,1720936239528,-500.0,0.00013698,2]
[332020478,1720936239537,-500.0,0.00013698,2]
[332020479,1720936239546,-500.0,0.00013698,2]
[332020481,1720936239555,-554.44221511,0.00013698,2]
[332020483,1720936239564,-500.0,0.00013698,2]
[332020485,1720936239573,-111.50440944,0.00013698,2]
[332020489,1720936239592,-388.49559056,0.00013698,2]
[332020491,1720936239602,-500.0,0.00013698,2]
[332020493,1720936239611,-500.0,0.00013698,2]
[332020494,1720936239622,-593.78,0.00013698,2]
[332020496,1720936239631,-500.0,0.00013698,2]
[332020498,1720936239640,-500.0,0.00013698,2]
[332020500,1720936239650,-500.0,0.00013698,2]
[332020502,1720936239659,-500.0,0.00013698,2]
[332020504,1720936239670,-500.0,0.00013698,2]
[332020507,1720936239681,-500.0,0.00013698,2]
[332020509,1720936239690,-500.0,0.00013698,2]
[332020511,1720936239700,-500.0,0.00013698,2]
[332020513,1720936239709,-500.0,0.00013698,2]
[332020515,1720936239718,-500.0,0.00013698,2]
[332020517,1720936239727,-500.0,0.00013698,2]
[332020519,1720936239736,-500.0,0.00013698,2]
[332020521,1720936239745,-500.0,0.00013698,2]
[332020522,1720936239756,-938.73,0.00013698,2]
[332020524,1720936239765,-500.0,0.00013698,2]
[332020526,1720936239774,-500.0,0.00013698,2]
[332020528,1720936239783,-500.0,0.00013698,2]
[332020530,1720936239793,-500.0,0.00013698,2]
[332020532,1720936239802,-500.0,0.00013698,2]
[332020534,1720936239811,-220.94928002,0.00013698,2]
[332020536,1720936239820,-500.0,0.00013698,2]
[332020538,1720936239830,-500.0,0.00013698,2]
[332020540,1720936239840,-500.0,0.00013698,2]
[332020542,1720936239849,-500.0,0.00013698,2]
[332020544,1720936239858,-500.0,0.00013698,2]
[332020546,1720936239867,-500.0,0.00013698,2]
[332020548,1720936239876,-500.0,0.00013698,2]
[332020550,1720936239885,-500.0,0.00013698,2]
[332020552,1720936239894,-500.0,0.00013698,2]
[332020554,1720936239903,-500.0,0.00013698,2]
[332020556,1720936239912,-500.0,0.00013698,2]
[332020558,1720936239922,-500.0,0.00013698,2]
[332020560,1720936239932,-500.0,0.00013698,2]
[332020562,1720936239941,-500.0,0.00013698,2]
[332020564,1720936239950,-500.0,0.00013698,2]
[332020566,1720936239960,-500.0,0.00013698,2]
[332020568,1720936239969,-500.0,0.00013698,2]
[332020570,1720936239978,-423.65271042,0.00013698,2]
[332020573,1720936239999,-76.34728958,0.00013698,2]
[332020575,1720936240008,-500.0,0.00013698,2]
[332020577,1720936240017,-500.0,0.00013698,2]
[332020579,1720936240026,-431.88014755,0.00013698,2]
[332020581,1720936240035,-500.0,0.00013698,2]
[332020583,1720936240044,-500.0,0.00013698,2]
[332020585,1720936240053,-500.0,0.00013698,2]
[332020587,1720936240062,-500.0,0.00013698,2]
[332020589,1720936240071,-500.0,0.00013698,2]
[332020591,1720936240081,-500.0,0.00013698,2]
[332020593,1720936240095,-500.0,0.00013698,2]
[332020595,1720936240104,-500.0,0.00013698,2]
[332020597,1720936240113,-500.0,0.00013698,2]
[332020600,1720936240124,-500.0,0.00013698,2]
[332020602,1720936240133,-500.0,0.00013698,2]
[332020604,1720936240143,-500.0,0.00013698,2]
[332020606,1720936240152,-500.0,0.00013698,2]
[332020608,1720936240162,-500.0,0.00013698,2]
[332020610,1720936240172,-500.0,0.00013698,2]
[332020612,1720936240181,-500.0,0.00013698,2]
[332020614,1720936240190,-500.0,0.00013698,2]
[332020616,1720936240199,-500.0,0.00013698,2]
[332020618,1720936240207,-500.0,0.00013698,2]
[332020620,1720936240216,-500.0,0.00013698,2]
[332020622,1720936240226,-500.0,0.00013698,2]
[332020624,1720936240235,-500.0,0.00013698,2]
[332020626,1720936240244,-500.0,0.00013698,2]
[332020628,1720936240253,-500.0,0.00013698,2]
[332020630,1720936240263,-500.0,0.00013698,2]
[332020632,1720936240272,-500.0,0.00013698,2]
[332020634,1720936240281,-500.0,0.00013698,2]
[332020636,1720936240290,-500.0,0.00013698,2]
[332020638,1720936240299,-1.09125125,0.00013698,2]
[332020640,1720936240313,-498.90874875,0.00013698,2]
[332020642,1720936240323,-500.0,0.00013698,2]
[332020644,1720936240332,-669.25,0.00013698,2]
[332020646,1720936240341,-254.25710869,0.00013698,2]
[332020648,1720936240350,-68.26545418,0.00013698,2]
[332020650,1720936240362,-431.73454582,0.00013698,2]
[332020652,1720936240373,-500.0,0.00013698,2]
[332020654,1720936240386,-98.22686654,0.00013698,2]
[332020657,1720936240398,-401.77313346,0.00013698,2]
[332020658,1720936240407,-500.0,0.00013698,2]
[332020660,1720936240416,-500.0,0.00013698,2]
[332020662,1720936240426,-500.0,0.00013698,2]
[332020664,1720936240435,-500.0,0.00013698,2]
[332020665,1720936240445,-500.0,0.00013698,2]
[332020666,1720936240455,-500.0,0.00013698,2]
[332020667,1720936240464,-320.27850333,0.00013698,2]
[332020668,1720936240476,-179.72149667,0.00013698,2]
[332020669,1720936240486,-500.0,0.00013698,2]
[332020670,1720936240495,-426.49216766,0.00013698,2]
[332020671,1720936240507,-73.50783234,0.00013698,2]
[332020672,1720936240516,-500.0,0.00013698,2]
[332020674,1720936240526,-500.0,0.00013698,2]
[332020676,1720936240535,-500.0,0.00013698,2]
[332020678,1720936240544,-500.0,0.00013698,2]
[332020680,1720936240554,-500.0,0.00013698,2]
[332020682,1720936240564,-400.89216766,0.00013698,2]
[332020685,1720936240577,-99.10783234,0.00013698,2]
[332020687,1720936240586,-500.0,0.00013698,2]
[332020689,1720936240597,-500.0,0.00013698,2]
[332020691,1720936240607,-500.0,0.00013698,2]
[332020693,1720936240616,-580.0,0.00013698,2]
[332020695,1720936240626,-500.0,0.00013698,2]
[332020697,1720936240635,-500.0,0.00013698,2]